[Event "Late-Titled-Tuesday-Blitz-March-12-2024"]
[Site "Chess.com"]
[Date "2024.03.12"]
[Round "10"]
[White "1g60-1"]
[Black "Willhaven3"]
[Result "1-0"]
[WhiteElo "2381"]
[BlackElo "2607"]
[TimeControl "180+1"]
[EndTime "15:55:28 PDT"]
[Termination "1g60-1 won by checkmate"]

1. Nf3 {[%clk 0:03:00.9]} 1... f5 {[%clk 0:02:59.4]} 2. d3 {[%clk 0:02:56.7]}
2... Nf6 {[%clk 0:02:57.7]} 3. Nc3 {[%clk 0:02:57.1]} 3... d6 {[%clk 0:02:58.1]}
4. e4 {[%clk 0:02:57.2]} 4... Nc6 {[%clk 0:02:57.7]} 5. Bg5 {[%clk 0:02:57.2]}
5... g6 {[%clk 0:02:50.4]} 6. Bxf6 {[%clk 0:02:56.2]} 6... exf6 {[%clk
0:02:51.3]} 7. exf5 {[%clk 0:02:44.1]} 7... Bxf5 {[%clk 0:02:50.9]} 8. d4 {[%clk
0:02:42.1]} 8... d5 {[%clk 0:02:49.3]} 9. Bb5 {[%clk 0:02:37.7]} 9... Qd6 {[%clk
0:02:43.1]} 10. O-O {[%clk 0:02:35.7]} 10... Bh6 {[%clk 0:02:41.8]} 11. Nh4
{[%clk 0:02:25.1]} 11... Be6 {[%clk 0:02:32]} 12. Re1 {[%clk 0:02:21.1]} 12...
O-O {[%clk 0:02:29.3]} 13. h3 {[%clk 0:02:15.7]} 13... Rfe8 {[%clk 0:02:25.6]}
14. Ba4 {[%clk 0:02:05.6]} 14... Re7 {[%clk 0:02:22.8]} 15. Bb3 {[%clk
0:01:53.7]} 15... Rd8 {[%clk 0:02:14.9]} 16. a3 {[%clk 0:01:47.3]} 16... Na5
{[%clk 0:02:07.6]} 17. Ba2 {[%clk 0:01:44.8]} 17... Nc4 {[%clk 0:02:07.8]} 18.
Bxc4 {[%clk 0:01:43.5]} 18... dxc4 {[%clk 0:02:08.7]} 19. d5 {[%clk 0:01:42.1]}
19... Bf7 {[%clk 0:02:07.2]} 20. Rxe7 {[%clk 0:01:42.2]} 20... Qxe7 {[%clk
0:02:07.3]} 21. Qd4 {[%clk 0:01:40.1]} 21... a6 {[%clk 0:01:51.5]} 22. Nf3
{[%clk 0:01:35.2]} 22... c6 {[%clk 0:01:41.4]} 23. Re1 {[%clk 0:01:27.6]} 23...
Qd7 {[%clk 0:01:39.4]} 24. Qxf6 {[%clk 0:01:22.8]} 24... Bg7 {[%clk 0:01:35.9]}
25. Qh4 {[%clk 0:01:13.4]} 25... cxd5 {[%clk 0:00:58.5]} 26. Re7 {[%clk
0:00:52.8]} 26... Qd6 {[%clk 0:00:57.3]} 27. Rxb7 {[%clk 0:00:46.1]} 27... d4
{[%clk 0:00:51]} 28. Ne4 {[%clk 0:00:31]} 28... Qd5 {[%clk 0:00:34.7]} 29. Ra7
{[%clk 0:00:19.3]} 29... h6 {[%clk 0:00:31.7]} 30. Nf6+ {[%clk 0:00:16.4]} 30...
Bxf6 {[%clk 0:00:30]} 31. Qxf6 {[%clk 0:00:17.3]} 31... Rd7 {[%clk 0:00:26.9]}
32. Rxd7 {[%clk 0:00:06.7]} 32... Qxd7 {[%clk 0:00:27.6]} 33. Qxd4 {[%clk
0:00:06.3]} 33... Qe6 {[%clk 0:00:20.3]} 34. Qe5 {[%clk 0:00:05.1]} 34... Qb6
{[%clk 0:00:17.9]} 35. Qd4 {[%clk 0:00:02]} 35... Qb5 {[%clk 0:00:17.2]} 36. Ne5
{[%clk 0:00:02]} 36... Qd5 {[%clk 0:00:16.5]} 37. Qxd5 {[%clk 0:00:01.7]} 37...
Bxd5 {[%clk 0:00:17.4]} 38. Kh2 {[%clk 0:00:01.7]} 38... Be4 {[%clk 0:00:17.6]}
39. c3 {[%clk 0:00:01.8]} 39... Kf8 {[%clk 0:00:16.7]} 40. Nd7+ {[%clk
0:00:02.1]} 40... Ke7 {[%clk 0:00:16.8]} 41. Nc5 {[%clk 0:00:02.4]} 41... Bc2
{[%clk 0:00:16]} 42. Nxa6 {[%clk 0:00:02.6]} 42... Kd6 {[%clk 0:00:16.9]} 43.
Nb4 {[%clk 0:00:03.2]} 43... Be4 {[%clk 0:00:15.6]} 44. f3 {[%clk 0:00:03.1]}
44... Bb7 {[%clk 0:00:15.8]} 45. Kg3 {[%clk 0:00:03.8]} 45... Ke5 {[%clk
0:00:16.3]} 46. Kf2 {[%clk 0:00:03.8]} 46... h5 {[%clk 0:00:15.7]} 47. Ke3
{[%clk 0:00:04.1]} 47... h4 {[%clk 0:00:16.2]} 48. Nc2 {[%clk 0:00:03.4]} 48...
g5 {[%clk 0:00:14.7]} 49. Nd4 {[%clk 0:00:03.8]} 49... Kf6 {[%clk 0:00:14.2]}
50. f4 {[%clk 0:00:03.9]} 50... gxf4+ {[%clk 0:00:13.3]} 51. Kxf4 {[%clk
0:00:04.8]} 51... Bxg2 {[%clk 0:00:13.6]} 52. Nf3 {[%clk 0:00:05.3]} 52... Bxh3
{[%clk 0:00:13.3]} 53. Nxh4 {[%clk 0:00:05.4]} 53... Bc8 {[%clk 0:00:13.4]} 54.
Ke3 {[%clk 0:00:05.7]} 54... Ke5 {[%clk 0:00:12.7]} 55. Nf3+ {[%clk 0:00:05.4]}
55... Kd5 {[%clk 0:00:12.6]} 56. Nd2 {[%clk 0:00:05.9]} 56... Kc5 {[%clk
0:00:12.8]} 57. Ke4 {[%clk 0:00:06]} 57... Bb7+ {[%clk 0:00:12.6]} 58. Ke5
{[%clk 0:00:06.4]} 58... Ba8 {[%clk 0:00:11.6]} 59. Ne4+ {[%clk 0:00:06.8]}
59... Kb5 {[%clk 0:00:11]} 60. Kd4 {[%clk 0:00:07]} 60... Bb7 {[%clk 0:00:11.1]}
61. Nd2 {[%clk 0:00:07.4]} 61... Bc6 {[%clk 0:00:11.2]} 62. Nxc4 {[%clk
0:00:07.8]} 62... Bd7 {[%clk 0:00:11]} 63. Nd2 {[%clk 0:00:08.3]} 63... Be6
{[%clk 0:00:11]} 64. b3 {[%clk 0:00:08.4]} 64... Bf7 {[%clk 0:00:09.9]} 65. c4+
{[%clk 0:00:09]} 65... Kc6 {[%clk 0:00:10.2]} 66. b4 {[%clk 0:00:08.9]} 66...
Kb6 {[%clk 0:00:10.6]} 67. a4 {[%clk 0:00:09.2]} 67... Be6 {[%clk 0:00:09.7]}
68. c5+ {[%clk 0:00:09.5]} 68... Kc7 {[%clk 0:00:10.1]} 69. b5 {[%clk
0:00:09.6]} 69... Bd7 {[%clk 0:00:10.4]} 70. Nc4 {[%clk 0:00:09.9]} 70... Be8
{[%clk 0:00:10.7]} 71. Nd6 {[%clk 0:00:09.9]} 71... Bd7 {[%clk 0:00:10.7]} 72.
Ke5 {[%clk 0:00:09.1]} 72... Bg4 {[%clk 0:00:09.9]} 73. Ne4 {[%clk 0:00:09.2]}
73... Bd1 {[%clk 0:00:06.9]} 74. Nc3 {[%clk 0:00:09.5]} 74... Bb3 {[%clk
0:00:05.4]} 75. Kd4 {[%clk 0:00:09.1]} 75... Bf7 {[%clk 0:00:04]} 76. a5 {[%clk
0:00:09.6]} 76... Kb7 {[%clk 0:00:04.3]} 77. c6+ {[%clk 0:00:09.6]} 77... Kc7
{[%clk 0:00:04.5]} 78. Kc5 {[%clk 0:00:10.5]} 78... Bg6 {[%clk 0:00:04.4]} 79.
b6+ {[%clk 0:00:10.7]} 79... Kc8 {[%clk 0:00:04.9]} 80. Nb5 {[%clk 0:00:11]}
80... Bf5 {[%clk 0:00:03.9]} 81. a6 {[%clk 0:00:11.4]} 81... Kb8 {[%clk
0:00:04.2]} 82. c7+ {[%clk 0:00:10.5]} 82... Ka8 {[%clk 0:00:03.6]} 83. Nd6
{[%clk 0:00:10.1]} 83... Bc8 {[%clk 0:00:02.7]} 84. b7+ {[%clk 0:00:09.5]} 84...
Bxb7 {[%clk 0:00:02.8]} 85. axb7+ {[%clk 0:00:10.4]} 85... Ka7 {[%clk
0:00:03.5]} 86. b8=Q+ {[%clk 0:00:10.6]} 86... Ka6 {[%clk 0:00:04.4]} 87. Qb6#
{[%clk 0:00:10.9]} 1-0

[Event "Late-Titled-Tuesday-Blitz-March-12-2024"]
[Site "Chess.com"]
[Date "2024.03.12"]
[Round "10"]
[White "Smoking_Crow"]
[Black "alexrustemov"]
[Result "0-1"]
[WhiteElo "2639"]
[BlackElo "2839"]
[TimeControl "180+1"]
[EndTime "15:55:36 PDT"]
[Termination "alexrustemov won on time"]

1. e4 {[%clk 0:03:00.2]} 1... e6 {[%clk 0:02:59.9]} 2. d4 {[%clk 0:03:00.6]}
2... d5 {[%clk 0:03:00.6]} 3. Nd2 {[%clk 0:03:01.4]} 3... dxe4 {[%clk
0:03:01.1]} 4. Nxe4 {[%clk 0:03:02.3]} 4... Bd7 {[%clk 0:03:01.7]} 5. Nf3 {[%clk
0:03:02.2]} 5... Bc6 {[%clk 0:03:02.2]} 6. Bd3 {[%clk 0:03:00.1]} 6... Nd7
{[%clk 0:03:02.5]} 7. O-O {[%clk 0:02:59.6]} 7... Ngf6 {[%clk 0:03:03]} 8. Neg5
{[%clk 0:02:59.3]} 8... Bd6 {[%clk 0:03:01.6]} 9. Qe2 {[%clk 0:02:55.2]} 9... h6
{[%clk 0:02:59.5]} 10. Nh3 {[%clk 0:02:47]} 10... Bxf3 {[%clk 0:02:48.4]} 11.
Qxf3 {[%clk 0:02:46.3]} 11... c6 {[%clk 0:02:48.9]} 12. Nf4 {[%clk 0:02:43.9]}
12... O-O {[%clk 0:02:46.8]} 13. Ne2 {[%clk 0:02:38]} 13... e5 {[%clk
0:02:41.4]} 14. Be3 {[%clk 0:02:32]} 14... Re8 {[%clk 0:02:40]} 15. Ng3 {[%clk
0:02:29.5]} 15... exd4 {[%clk 0:02:37.7]} 16. Bxd4 {[%clk 0:02:29.3]} 16... Ne5
{[%clk 0:02:34.8]} 17. Bxe5 {[%clk 0:02:29.2]} 17... Bxe5 {[%clk 0:02:35.5]} 18.
Nf5 {[%clk 0:02:29]} 18... Qc7 {[%clk 0:02:23.1]} 19. h3 {[%clk 0:02:25.3]}
19... Bxb2 {[%clk 0:02:22]} 20. Rab1 {[%clk 0:02:23.6]} 20... Be5 {[%clk
0:02:21.1]} 21. Bc4 {[%clk 0:02:23.6]} 21... b5 {[%clk 0:02:11.4]} 22. Bb3
{[%clk 0:02:23.8]} 22... c5 {[%clk 0:02:03.4]} 23. c4 {[%clk 0:02:23.7]} 23...
b4 {[%clk 0:02:02.8]} 24. Ba4 {[%clk 0:02:23.7]} 24... Red8 {[%clk 0:01:59.8]}
25. Rfe1 {[%clk 0:02:23]} 25... h5 {[%clk 0:01:48.6]} 26. Re2 {[%clk 0:02:22.3]}
26... g6 {[%clk 0:01:47.8]} 27. Ne3 {[%clk 0:02:13.3]} 27... Bd4 {[%clk
0:01:38.2]} 28. Nd5 {[%clk 0:02:03]} 28... Nxd5 {[%clk 0:01:34.7]} 29. cxd5
{[%clk 0:02:03.9]} 29... Qd6 {[%clk 0:01:33.2]} 30. Bc6 {[%clk 0:02:01.3]} 30...
Rac8 {[%clk 0:01:31.3]} 31. Rbe1 {[%clk 0:01:59.4]} 31... Qf6 {[%clk 0:01:28.4]}
32. Qg3 {[%clk 0:01:50.2]} 32... h4 {[%clk 0:01:25.7]} 33. Qg4 {[%clk
0:01:50.2]} 33... Kg7 {[%clk 0:01:17.8]} 34. Kh1 {[%clk 0:01:46.6]} 34... Rc7
{[%clk 0:01:16.6]} 35. f4 {[%clk 0:01:39.3]} 35... c4 {[%clk 0:01:13.2]} 36. f5
{[%clk 0:01:38.3]} 36... Bc3 {[%clk 0:01:03.4]} 37. Rf1 {[%clk 0:01:35.6]} 37...
g5 {[%clk 0:01:02.3]} 38. Qxc4 {[%clk 0:01:30.8]} 38... Re7 {[%clk 0:01:00.2]}
39. Rxe7 {[%clk 0:01:26.8]} 39... Qxe7 {[%clk 0:01:00.2]} 40. Qg4 {[%clk
0:01:25.4]} 40... Bf6 {[%clk 0:00:58.9]} 41. Qf3 {[%clk 0:01:23.6]} 41... a5
{[%clk 0:00:56.7]} 42. Qf2 {[%clk 0:01:22.1]} 42... Rb8 {[%clk 0:00:46.8]} 43.
Re1 {[%clk 0:01:21.7]} 43... Qd6 {[%clk 0:00:45.2]} 44. Qf3 {[%clk 0:01:13.8]}
44... Rc8 {[%clk 0:00:39.2]} 45. Qg4 {[%clk 0:00:58.2]} 45... Rc7 {[%clk
0:00:39.5]} 46. Kg1 {[%clk 0:00:56.5]} 46... Re7 {[%clk 0:00:39.9]} 47. Rf1
{[%clk 0:00:47.5]} 47... Re3 {[%clk 0:00:39.4]} 48. Qc4 {[%clk 0:00:38.3]} 48...
Qe5 {[%clk 0:00:38.9]} 49. Kh1 {[%clk 0:00:36]} 49... Re2 {[%clk 0:00:38.8]} 50.
d6 {[%clk 0:00:34.8]} 50... Rd2 {[%clk 0:00:37.1]} 51. d7 {[%clk 0:00:32.8]}
51... Qc3 {[%clk 0:00:36]} 52. Qe4 {[%clk 0:00:27.3]} 52... Rd4 {[%clk
0:00:30.3]} 53. Qf3 {[%clk 0:00:26.5]} 53... Rd3 {[%clk 0:00:30.6]} 54. Qe4
{[%clk 0:00:26.6]} 54... Rd4 {[%clk 0:00:22.1]} 55. Qf3 {[%clk 0:00:26.6]} 55...
Rd2 {[%clk 0:00:22]} 56. Bd5 {[%clk 0:00:21.3]} 56... Qxf3 {[%clk 0:00:18.8]}
57. Bxf3 {[%clk 0:00:20.3]} 57... Rxd7 {[%clk 0:00:18.5]} 58. Rd1 {[%clk
0:00:18.8]} 58... Rc7 {[%clk 0:00:15.7]} 59. Kg1 {[%clk 0:00:19.2]} 59... a4
{[%clk 0:00:15.7]} 60. Rd3 {[%clk 0:00:14.1]} 60... Bc3 {[%clk 0:00:11.2]} 61.
Bd5 {[%clk 0:00:12.1]} 61... Kf6 {[%clk 0:00:11.4]} 62. Kf2 {[%clk 0:00:10.8]}
62... Kxf5 {[%clk 0:00:11.3]} 63. Rf3+ {[%clk 0:00:09.7]} 63... Kg6 {[%clk
0:00:11.6]} 64. Be4+ {[%clk 0:00:09.8]} 64... Kg7 {[%clk 0:00:11.8]} 65. Ke2
{[%clk 0:00:09.7]} 65... b3 {[%clk 0:00:11.6]} 66. axb3 {[%clk 0:00:09.6]} 66...
axb3 {[%clk 0:00:12.2]} 67. Bb1 {[%clk 0:00:09.5]} 67... b2 {[%clk 0:00:12]} 68.
Rf1 {[%clk 0:00:08.5]} 68... Be5 {[%clk 0:00:11.8]} 69. Ba2 {[%clk 0:00:08.8]}
69... f6 {[%clk 0:00:11.9]} 70. Bb1 {[%clk 0:00:09]} 70... Rc1 {[%clk
0:00:11.7]} 71. Ba2 {[%clk 0:00:08.3]} 71... Kf8 {[%clk 0:00:10.5]} 72. Rd1
{[%clk 0:00:08.2]} 72... Ke7 {[%clk 0:00:10.4]} 73. Bb1 {[%clk 0:00:08.6]} 73...
Rxd1 {[%clk 0:00:08.5]} 74. Kxd1 {[%clk 0:00:08.6]} 74... Kd6 {[%clk 0:00:09.4]}
75. Kd2 {[%clk 0:00:08.9]} 75... Kc5 {[%clk 0:00:10]} 76. Kd3 {[%clk 0:00:09.2]}
76... Kb4 {[%clk 0:00:09.7]} 77. Kd2 {[%clk 0:00:06.2]} 77... Kb3 {[%clk
0:00:09.5]} 78. Kd3 {[%clk 0:00:04.8]} 78... Bb8 {[%clk 0:00:09]} 79. Kd4 {[%clk
0:00:03.3]} 79... Kb4 {[%clk 0:00:08.2]} 80. Kd3 {[%clk 0:00:02.7]} 80... Be5
{[%clk 0:00:08.1]} 81. Kd2 {[%clk 0:00:01.9]} 81... Kc4 {[%clk 0:00:08.6]} 82.
Ba2+ {[%clk 0:00:01.6]} 82... Kd4 {[%clk 0:00:08.7]} 0-1

[Event "Late-Titled-Tuesday-Blitz-March-12-2024"]
[Site "Chess.com"]
[Date "2024.03.12"]
[Round "10"]
[White "vi_pranav"]
[Black "Polish_fighter3000"]
[Result "1-0"]
[WhiteElo "3066"]
[BlackElo "3130"]
[TimeControl "180+1"]
[EndTime "15:56:27 PDT"]
[Termination "vi_pranav won on time"]

1. e4 {[%clk 0:03:00.9]} 1... c5 {[%clk 0:03:00.5]} 2. Nf3 {[%clk 0:03:01.1]}
2... Nf6 {[%clk 0:03:01.1]} 3. Nc3 {[%clk 0:02:56.1]} 3... d6 {[%clk 0:03:01.2]}
4. d4 {[%clk 0:02:55.5]} 4... cxd4 {[%clk 0:03:02.1]} 5. Nxd4 {[%clk 0:02:56.4]}
5... a6 {[%clk 0:03:02.8]} 6. h3 {[%clk 0:02:56.3]} 6... e5 {[%clk 0:03:02.6]}
7. Nf3 {[%clk 0:02:56.7]} 7... Be7 {[%clk 0:03:02.1]} 8. g4 {[%clk 0:02:56.8]}
8... Be6 {[%clk 0:02:58.7]} 9. g5 {[%clk 0:02:55.5]} 9... Nfd7 {[%clk
0:02:58.7]} 10. Be3 {[%clk 0:02:55.4]} 10... Nb6 {[%clk 0:02:57.2]} 11. h4
{[%clk 0:02:51.3]} 11... N8d7 {[%clk 0:02:56.7]} 12. Rg1 {[%clk 0:02:51.1]}
12... Rc8 {[%clk 0:02:55.9]} 13. Qd2 {[%clk 0:02:46.1]} 13... Nc5 {[%clk
0:02:49.3]} 14. h5 {[%clk 0:02:33.8]} 14... Qd7 {[%clk 0:02:47.8]} 15. Rg3
{[%clk 0:02:29.7]} 15... Nba4 {[%clk 0:02:43.7]} 16. Nxa4 {[%clk 0:02:17.7]}
16... Qxa4 {[%clk 0:02:39.1]} 17. Bxc5 {[%clk 0:02:17.6]} 17... Rxc5 {[%clk
0:02:19.7]} 18. Bd3 {[%clk 0:02:17.3]} 18... O-O {[%clk 0:02:18.7]} 19. b3
{[%clk 0:02:07.4]} 19... Qa3 {[%clk 0:02:07.9]} 20. c4 {[%clk 0:01:40.9]} 20...
Rfc8 {[%clk 0:01:56.3]} 21. Be2 {[%clk 0:01:39.2]} 21... R5c7 {[%clk 0:01:23.2]}
22. Nh4 {[%clk 0:01:27.8]} 22... d5 {[%clk 0:01:04.4]} 23. Kf1 {[%clk
0:00:59.7]} 23... dxe4 {[%clk 0:01:02.7]} 24. Qc2 {[%clk 0:00:56.5]} 24... b5
{[%clk 0:00:40]} 25. Qxe4 {[%clk 0:00:55.1]} 25... Qb2 {[%clk 0:00:38.4]} 26.
Rb1 {[%clk 0:00:23.3]} 26... Qd4 {[%clk 0:00:26.6]} 27. Qxd4 {[%clk 0:00:18.8]}
27... exd4 {[%clk 0:00:27.5]} 28. cxb5 {[%clk 0:00:11.8]} 28... axb5 {[%clk
0:00:21]} 29. Nf3 {[%clk 0:00:05.5]} 29... Bd5 {[%clk 0:00:10.4]} 30. Rd1 {[%clk
0:00:03]} 30... Rc1 {[%clk 0:00:10.2]} 31. Nxd4 {[%clk 0:00:02.4]} 31... b4
{[%clk 0:00:07.2]} 32. Re3 {[%clk 0:00:02]} 32... Rxd1+ {[%clk 0:00:03.8]} 33.
Bxd1 {[%clk 0:00:02.2]} 33... Bf8 {[%clk 0:00:02.9]} 34. Nf5 {[%clk 0:00:01.8]}
34... Be6 {[%clk 0:00:02.9]} 35. Nd4 {[%clk 0:00:02]} 35... Bd7 {[%clk
0:00:01.3]} 36. Be2 {[%clk 0:00:01.9]} 36... Rd8 {[%clk 0:00:01.6]} 37. Bc4
{[%clk 0:00:02.2]} 37... Bc5 {[%clk 0:00:02.1]} 38. Rf3 {[%clk 0:00:01.4]} 38...
Bxd4 {[%clk 0:00:02.2]} 39. Rxf7 {[%clk 0:00:02.1]} 39... Kh8 {[%clk 0:00:02.8]}
40. h6 {[%clk 0:00:02.6]} 40... gxh6 {[%clk 0:00:02.9]} 41. gxh6 {[%clk
0:00:03.5]} 41... Bc6 {[%clk 0:00:02.8]} 42. Bd3 {[%clk 0:00:03.3]} 42... Bd5
{[%clk 0:00:02.5]} 43. Rxh7+ {[%clk 0:00:03.4]} 43... Kg8 {[%clk 0:00:03.2]} 44.
Re7 {[%clk 0:00:03.3]} 44... Rf8 {[%clk 0:00:03.4]} 45. h7+ {[%clk 0:00:03.6]}
45... Kh8 {[%clk 0:00:03.5]} 46. Rd7 {[%clk 0:00:04.1]} 46... Bxb3 {[%clk
0:00:01.8]} 47. axb3 {[%clk 0:00:02.9]} 47... Bxf2 {[%clk 0:00:02.1]} 48. Ke2
{[%clk 0:00:03.4]} 48... Bg3 {[%clk 0:00:02]} 49. Be4 {[%clk 0:00:03.7]} 49...
Be5 {[%clk 0:00:02.4]} 50. Rd5 {[%clk 0:00:03.5]} 50... Bc3 {[%clk 0:00:02.5]}
51. Rg5 {[%clk 0:00:03.4]} 51... Re8 {[%clk 0:00:02.4]} 52. Kd3 {[%clk
0:00:03.7]} 52... Rd8+ {[%clk 0:00:02.9]} 53. Ke2 {[%clk 0:00:02.8]} 53... Re8
{[%clk 0:00:03.4]} 54. Kf3 {[%clk 0:00:03.4]} 54... Rf8+ {[%clk 0:00:04]} 55.
Kg4 {[%clk 0:00:03.4]} 55... Re8 {[%clk 0:00:04.4]} 56. Bf5 {[%clk 0:00:03.5]}
56... Bf6 {[%clk 0:00:03.1]} 57. Rg6 {[%clk 0:00:03.8]} 57... Bg7 {[%clk
0:00:03.5]} 58. Rb6 {[%clk 0:00:03.8]} 58... Bc3 {[%clk 0:00:03.6]} 59. Bg6
{[%clk 0:00:03.4]} 59... Rd8 {[%clk 0:00:02.3]} 60. Kf5 {[%clk 0:00:03.6]} 60...
Kg7 {[%clk 0:00:02.1]} 61. Rb7+ {[%clk 0:00:03.8]} 61... Kh6 {[%clk 0:00:02.6]}
62. Bf7 {[%clk 0:00:02.3]} 62... Kxh7 {[%clk 0:00:01.9]} 63. Bg6+ {[%clk
0:00:02.6]} 63... Kg8 {[%clk 0:00:02.4]} 64. Bh7+ {[%clk 0:00:02.3]} 64... Kf8
{[%clk 0:00:02.7]} 65. Bg6 {[%clk 0:00:03.2]} 65... Rd5+ {[%clk 0:00:02.7]} 66.
Ke6 {[%clk 0:00:03.6]} 66... Re5+ {[%clk 0:00:03.2]} 67. Kd6 {[%clk 0:00:03.6]}
67... Re2 {[%clk 0:00:03.7]} 68. Rb8+ {[%clk 0:00:02.8]} 68... Kg7 {[%clk
0:00:04]} 69. Bh5 {[%clk 0:00:02.9]} 69... Re1 {[%clk 0:00:03.6]} 70. Rb7+
{[%clk 0:00:03]} 70... Kf6 {[%clk 0:00:04.2]} 71. Rb5 {[%clk 0:00:02.6]} 71...
Rb1 {[%clk 0:00:03.9]} 72. Kc7 {[%clk 0:00:01.7]} 72... Rxb3 {[%clk 0:00:04.1]}
73. Be8 {[%clk 0:00:02]} 73... Rb2 {[%clk 0:00:03.2]} 74. Bc6 {[%clk 0:00:02.4]}
74... Ke6 {[%clk 0:00:02.9]} 75. Bd5+ {[%clk 0:00:02.5]} 75... Ke5 {[%clk
0:00:03.4]} 76. Kb7 {[%clk 0:00:03.1]} 76... Kd4 {[%clk 0:00:03.6]} 77. Kc6
{[%clk 0:00:03.4]} 77... Rf2 {[%clk 0:00:03.3]} 78. Bb3 {[%clk 0:00:03.6]} 78...
Rf6+ {[%clk 0:00:03.7]} 79. Kb7 {[%clk 0:00:04]} 79... Bd2 {[%clk 0:00:03.6]}
80. Bg8 {[%clk 0:00:03.9]} 80... Kc3 {[%clk 0:00:03.3]} 81. Rc5+ {[%clk
0:00:04.2]} 81... Kb2 {[%clk 0:00:03.3]} 82. Rd5 {[%clk 0:00:04.6]} 82... Bc3
{[%clk 0:00:03.6]} 83. Rb5 {[%clk 0:00:05.1]} 83... Rg6 {[%clk 0:00:03.1]} 84.
Bd5 {[%clk 0:00:05.6]} 84... Rd6 {[%clk 0:00:02.3]} 85. Kc7 {[%clk 0:00:05.8]}
85... Rh6 {[%clk 0:00:02.9]} 86. Kb7 {[%clk 0:00:06.1]} 86... Rh5 {[%clk
0:00:03]} 87. Bc4 {[%clk 0:00:05.9]} 87... Rh4 {[%clk 0:00:03.5]} 88. Bd5 {[%clk
0:00:06]} 88... Kc2 {[%clk 0:00:03.9]} 89. Kc6 {[%clk 0:00:06.1]} 89... Rh6+
{[%clk 0:00:03.3]} 90. Kb7 {[%clk 0:00:06.2]} 90... Kd3 {[%clk 0:00:03.7]} 91.
Bb3 {[%clk 0:00:04.9]} 91... Bd2 {[%clk 0:00:03.2]} 92. Kc8 {[%clk 0:00:03.7]}
92... Kc3 {[%clk 0:00:03.2]} 93. Bd5 {[%clk 0:00:04]} 93... Be3 {[%clk
0:00:03.6]} 94. Kb7 {[%clk 0:00:04.3]} 94... Rd6 {[%clk 0:00:03.4]} 95. Bg8
{[%clk 0:00:02.9]} 95... Rd7+ {[%clk 0:00:03.1]} 96. Kc6 {[%clk 0:00:03.3]}
96... Ra7 {[%clk 0:00:03]} 97. Bd5 {[%clk 0:00:03.6]} 97... Ra6+ {[%clk
0:00:02.9]} 98. Kb7 {[%clk 0:00:04.1]} 98... Rh6 {[%clk 0:00:03.1]} 99. Bg8
{[%clk 0:00:03.6]} 99... Bd4 {[%clk 0:00:02.6]} 100. Bd5 {[%clk 0:00:04.1]}
100... Rh5 {[%clk 0:00:02.4]} 101. Kc6 {[%clk 0:00:04.1]} 101... Rg5 {[%clk
0:00:02]} 102. Kb7 {[%clk 0:00:04.5]} 1-0

[Event "Late-Titled-Tuesday-Blitz-March-12-2024"]
[Site "Chess.com"]
[Date "2024.03.12"]
[Round "11"]
[White "Boninknights"]
[Black "Roedor"]
[Result "1-0"]
[WhiteElo "2393"]
[BlackElo "2268"]
[TimeControl "180+1"]
[EndTime "15:58:52 PDT"]
[Termination "Boninknights won by resignation"]

1. d4 {[%clk 0:02:57.3]} 1... Nf6 {[%clk 0:02:59.9]} 2. Nf3 {[%clk 0:02:56.5]}
2... g6 {[%clk 0:03:00.4]} 3. c4 {[%clk 0:02:55.9]} 3... Bg7 {[%clk 0:03:00.9]}
4. Nc3 {[%clk 0:02:55.3]} 4... O-O {[%clk 0:03:01.1]} 5. e4 {[%clk 0:02:55.1]}
5... d6 {[%clk 0:03:01.5]} 6. Be2 {[%clk 0:02:54.8]} 6... e5 {[%clk 0:03:01.4]}
7. dxe5 {[%clk 0:02:54.1]} 7... dxe5 {[%clk 0:03:01.1]} 8. Qxd8 {[%clk 0:02:52]}
8... Rxd8 {[%clk 0:03:02]} 9. Bg5 {[%clk 0:02:50.3]} 9... Nbd7 {[%clk
0:02:58.2]} 10. O-O-O {[%clk 0:02:40.6]} 10... Rf8 {[%clk 0:02:57.7]} 11. Nd5
{[%clk 0:02:30.1]} 11... c6 {[%clk 0:02:57.7]} 12. Ne7+ {[%clk 0:02:28.9]} 12...
Kh8 {[%clk 0:02:57]} 13. Be3 {[%clk 0:02:28.2]} 13... Nxe4 {[%clk 0:02:51.5]}
14. Nxc8 {[%clk 0:02:26.3]} 14... Raxc8 {[%clk 0:02:48.4]} 15. Rxd7 {[%clk
0:02:24]} 15... f5 {[%clk 0:02:47.6]} 16. Ng5 {[%clk 0:02:12.3]} 16... Nf6
{[%clk 0:02:39.9]} 17. Rxb7 {[%clk 0:02:09.8]} 17... f4 {[%clk 0:02:37.1]} 18.
Bc5 {[%clk 0:02:05.6]} 1-0

[Event "Late-Titled-Tuesday-Blitz-March-12-2024"]
[Site "Chess.com"]
[Date "2024.03.12"]
[Round "11"]
[White "OverallStranger"]
[Black "Quattroporte300"]
[Result "1-0"]
[WhiteElo "2398"]
[BlackElo "2476"]
[TimeControl "180+1"]
[EndTime "15:58:56 PDT"]
[Termination "OverallStranger won by resignation"]

1. e4 {[%clk 0:03:00.9]} 1... c5 {[%clk 0:02:59.5]} 2. Nc3 {[%clk 0:03:00.8]}
2... Nc6 {[%clk 0:02:58.6]} 3. Bb5 {[%clk 0:03:01]} 3... Nd4 {[%clk 0:02:58.5]}
4. Nf3 {[%clk 0:03:00.7]} 4... Nxb5 {[%clk 0:02:57.7]} 5. Nxb5 {[%clk
0:03:01.6]} 5... a6 {[%clk 0:02:57.9]} 6. Nc3 {[%clk 0:03:01.8]} 6... e6 {[%clk
0:02:58.2]} 7. d4 {[%clk 0:03:01.7]} 7... cxd4 {[%clk 0:02:57.2]} 8. Qxd4 {[%clk
0:03:02.6]} 8... d6 {[%clk 0:02:53]} 9. Bg5 {[%clk 0:03:02]} 9... Qc7 {[%clk
0:02:46.2]} 10. O-O-O {[%clk 0:03:00.6]} 10... b5 {[%clk 0:02:42.5]} 11. Bf4
{[%clk 0:02:42.8]} 11... e5 {[%clk 0:02:28.4]} 12. Nxe5 {[%clk 0:02:43.2]} 12...
dxe5 {[%clk 0:02:23.6]} 13. Bxe5 {[%clk 0:02:44.1]} 13... Qd7 {[%clk 0:02:21.8]}
14. Qb6 {[%clk 0:02:37]} 14... Qe7 {[%clk 0:02:03.8]} 15. Qc6+ {[%clk
0:02:32.4]} 15... Bd7 {[%clk 0:01:57.6]} 16. Qxa8+ {[%clk 0:02:31.9]} 1-0

[Event "Late-Titled-Tuesday-Blitz-March-12-2024"]
[Site "Chess.com"]
[Date "2024.03.12"]
[Round "11"]
[White "Alex_Banzea"]
[Black "MaiqMaster"]
[Result "1-0"]
[WhiteElo "2632"]
[BlackElo "2425"]
[TimeControl "180+1"]
[EndTime "15:59:03 PDT"]
[Termination "Alex_Banzea won by resignation"]

1. d4 {[%clk 0:02:36.7]} 1... d5 {[%clk 0:02:58.8]} 2. Nc3 {[%clk 0:02:36.1]}
2... Nf6 {[%clk 0:02:58.5]} 3. Bf4 {[%clk 0:02:35.9]} 3... g6 {[%clk 0:02:57.5]}
4. e3 {[%clk 0:02:33.8]} 4... Bg7 {[%clk 0:02:57.2]} 5. h4 {[%clk 0:02:28.2]}
5... h5 {[%clk 0:02:56.5]} 6. Nf3 {[%clk 0:02:28.4]} 6... O-O {[%clk 0:02:56.1]}
7. Ne5 {[%clk 0:02:28.3]} 7... c5 {[%clk 0:02:56]} 8. dxc5 {[%clk 0:02:23.6]}
8... Qa5 {[%clk 0:02:55.8]} 9. Qd2 {[%clk 0:02:23.7]} 9... Nc6 {[%clk
0:02:54.4]} 10. Nxc6 {[%clk 0:02:10.9]} 10... bxc6 {[%clk 0:02:55.3]} 11. Be5
{[%clk 0:02:11.3]} 11... Qxc5 {[%clk 0:02:51]} 12. Na4 {[%clk 0:02:03.6]} 12...
Ne4 {[%clk 0:02:34.5]} 13. Nxc5 {[%clk 0:02:01.5]} 13... Nxd2 {[%clk 0:02:33.8]}
14. Bxg7 {[%clk 0:02:00.9]} 14... Nxf1 {[%clk 0:02:26.6]} 15. Bxf8 {[%clk
0:01:57.9]} 1-0